fUSD/lending_fUSD_20250708
["ID","MTS","AMOUNT","RATE_DAILY","PERIOD"]
[370292007,1751938262355,-1000.0,0.00031454,2]
[370292008,1751938262364,-1000.0,0.00031454,2]
[370292009,1751938262374,-272.59601641,0.00031454,2]
[370292010,1751938262383,-207.4,0.00031454,2]
[370292011,1751938262392,-164.27811232,0.00031454,2]
[370292012,1751938262401,-300.0,0.00031454,2]
[370292013,1751938262410,-300.0,0.00031454,2]
[370292014,1751938262419,-300.0,0.00031454,2]
[370292015,1751938262429,-300.0,0.00031454,2]
[370292016,1751938262438,-300.0,0.00031454,2]
[370292017,1751938262448,-300.0,0.00031454,2]
[370292018,1751938262457,-300.0,0.00031454,2]
[370292019,1751938262466,-300.0,0.00031454,2]
[370292020,1751938262475,-300.0,0.00031454,2]
[370292021,1751938262484,-300.0,0.00031454,2]
[370292022,1751938262493,-300.0,0.00031454,2]
[370292023,1751938262503,-300.0,0.00031454,2]
[370292024,1751938262513,-300.0,0.00031454,2]
[370292025,1751938262523,-300.0,0.00031454,2]
[370292026,1751938262532,-300.0,0.00031454,2]
[370292027,1751938262542,-460.0,0.00031505,7]
[370292028,1751938262551,-460.0,0.00031505,7]
[370292029,1751938262561,-460.0,0.00031505,7]
[370292030,1751938262570,-460.0,0.00031505,7]
[370292031,1751938262579,-690.31,0.00031505,7]
[370292032,1751938262589,-460.0,0.00031505,7]
[370292033,1751938262598,-460.0,0.00031505,7]
[370292034,1751938262608,-460.0,0.00031505,7]
[370292035,1751938262618,-491.5,0.00031505,7]
[370292036,1751938262629,-500.0,0.00031505,7]
[370292037,1751938262639,-161.44108781,0.00031505,7]
[370292038,1751938262648,-1046.01,0.00031505,7]
[370292039,1751938262657,-1089.79,0.00031505,7]
[370292040,1751938262666,-460.0,0.00031505,7]
[370292041,1751938262676,-509.38,0.00031505,7]
[370292042,1751938262686,-547.7831619,0.00031505,7]
[370292043,1751938262695,-460.0,0.00031505,7]
[370292044,1751938262704,-654.62,0.00031505,7]
[370292045,1751938262713,-460.0,0.00031505,7]
[370292046,1751938262723,-1024.6,0.00031505,7]
[370292047,1751938262732,-718.1,0.00031505,7]
[370292048,1751938262741,-2116.36,0.00031505,7]
[370292049,1751938262750,-460.0,0.00031505,7]
[370292050,1751938262760,-480.94,0.00031505,7]
[370292051,1751938262770,-460.0,0.00031505,7]
[370292052,1751938262779,-9633.99,0.00031505,7]
[370292053,1751938262789,-1627.29,0.00031505,7]
[370292054,1751938262799,-1052.66,0.00031505,7]
[370292055,1751938262809,-906.26,0.00031505,7]
[370292056,1751938262819,-1424.17,0.00031505,7]
[370292057,1751938262830,-629.94,0.00031505,7]
[370292058,1751938262840,-1161.62,0.00031505,7]
[370292059,1751938262849,-1422.66,0.00031505,7]
[370292060,1751938262858,-460.0,0.00031505,7]
[370292061,1751938262868,-1483.98,0.00031505,7]
[370292062,1751938262878,-460.0,0.00031505,7]
[370292063,1751938262887,-460.0,0.00031505,7]
[370292064,1751938262897,-460.0,0.00031505,7]
[370292065,1751938262906,-460.0,0.00031505,7]
[370292066,1751938262917,-460.0,0.00031505,7]
[370292067,1751938262926,-702.72,0.00031505,7]
[370292068,1751938262935,-549.19,0.00031505,7]
[370292069,1751938262944,-460.0,0.00031505,7]
[370292070,1751938262954,-460.0,0.00031505,7]
[370292071,1751938262963,-460.0,0.00031505,7]
[370292072,1751938262972,-482.56,0.00031505,7]
[370292073,1751938262981,-1190.83,0.00031505,7]
[370292074,1751938262991,-892.31,0.00031505,7]
[370292075,1751938263000,-561.13060037,0.00031505,7]
[370292076,1751938263011,-844.16,0.00031505,7]
[370292077,1751938263021,-460.0,0.00031505,7]
[370292078,1751938263031,-460.0,0.00031505,7]
[370292079,1751938263041,-460.0,0.00031505,7]
[370292080,1751938263050,-460.0,0.00031505,7]
[370292081,1751938263060,-606.97853044,0.00031505,7]
[370292082,1751938263071,-2225.28,0.00031505,7]
[370292083,1751938263080,-151.0,0.00031506,7]
[370292084,1751938263090,-151.0,0.00031506,7]
[370292085,1751938263100,-151.0,0.00031506,7]
[370292086,1751938263109,-151.0,0.00031506,7]
[370292087,1751938263119,-151.0,0.00031506,7]
[370292088,1751938263129,-460.0,0.00031506,7]
[370292089,1751938263139,-460.0,0.00031506,7]
[370292090,1751938263148,-460.0,0.00031506,7]
[370292091,1751938263157,-460.0,0.00031506,7]
[370292092,1751938263167,-460.0,0.00031506,7]
[370292093,1751938263177,-460.0,0.00031506,7]
[370292094,1751938263186,-460.0,0.00031506,7]
[370292095,1751938263196,-598.43,0.00031506,7]
[370292096,1751938263207,-558.4,0.00031506,7]
[370292097,1751938263217,-543.88,0.00031506,7]
[370292098,1751938263226,-460.0,0.00031506,7]
[370292099,1751938263236,-460.0,0.00031506,7]
[370292100,1751938263245,-498.76,0.00031506,7]
[370292101,1751938263255,-460.0,0.00031506,7]
[370292102,1751938263264,-432.77197285,0.00031506,7]
[370292103,1751938263273,-460.0,0.00031506,7]
[370292104,1751938263284,-341.46950344,0.00031506,7]
[370292105,1751938263294,-460.0,0.00031506,7]
[370292106,1751938263302,-460.0,0.00031506,7]
[370292107,1751938263312,-460.0,0.00031506,7]
[370292108,1751938263321,-527.94,0.00031506,7]
[370292109,1751938263449,-460.0,0.00031506,7]
[370292110,1751938263459,-460.0,0.00031506,7]
[370292111,1751938263469,-460.0,0.00031506,7]
[370292112,1751938263479,-460.0,0.00031506,7]
[370292113,1751938263488,-619.62,0.00031506,7]
[370292114,1751938263498,-460.0,0.00031506,7]
[370292115,1751938263508,-572.72,0.00031506,7]
[370292116,1751938263518,-672.37,0.00031506,7]
[370292117,1751938263528,-460.0,0.00031506,7]
[370292118,1751938263538,-276.70205017,0.00031506,7]
[370292119,1751938263548,-550.0,0.00031506,7]
[370292120,1751938263558,-578.84,0.00031506,7]
[370292121,1751938263568,-460.0,0.00031506,7]
[370292122,1751938263577,-837.22,0.00031506,7]
[370292123,1751938263587,-582.79,0.00031506,7]
[370292124,1751938263596,-642.8,0.00031506,7]
[370292125,1751938263604,-510.32,0.00031506,7]
[370292126,1751938263613,-460.0,0.00031506,7]
[370292127,1751938263621,-601.62,0.00031506,7]
[370292128,1751938263629,-460.0,0.00031506,7]
[370292129,1751938263638,-184.594013,0.00031506,7]
[370292130,1751938263648,-152.876352,0.00031506,7]
[370292131,1751938263657,-470.11,0.00031506,7]
[370292132,1751938263667,-460.0,0.00031506,7]
[370292133,1751938263677,-186.865988,0.00031506,7]
[370292134,1751938263687,-762.48,0.00031506,7]
[370292135,1751938263696,-460.0,0.00031506,7]
[370292136,1751938263705,-1310.8,0.00031506,7]
[370292137,1751938263716,-460.0,0.00031506,7]
[370292138,1751938263725,-460.0,0.00031506,7]
[370292139,1751938263735,-460.0,0.00031506,7]
[370292140,1751938263745,-460.0,0.00031506,7]
[370292141,1751938263754,-460.0,0.00031506,7]
[370292142,1751938263764,-460.0,0.00031506,7]
[370292143,1751938263774,-518.02,0.00031506,7]
[370292144,1751938263783,-460.0,0.00031506,7]
[370292145,1751938263792,-460.0,0.00031506,7]
[370292146,1751938263802,-460.0,0.00031506,7]
[370292147,1751938263812,-163.63425777,0.00031506,7]
[370292148,1751938264733,-3403.12188688,0.00030036,2]
[370292149,1751938264743,-280.18464648,0.00030136,7]
[370292150,1751938264752,-460.0,0.00030136,7]
[370292151,1751938264762,-460.0,0.00030409,7]
[370292152,1751938264771,-521.78838769,0.00030409,7]
[370292153,1751938264781,-463.91295967,0.00030683,7]
[370292154,1751938264790,-296.36574223,0.00031506,7]
[370292155,1751938264799,-314.19,0.00031506,7]
[370292156,1751938264808,-460.0,0.00031506,7]
[370292157,1751938264817,-436.9,0.00031506,7]
[370292158,1751938264827,-460.0,0.00031506,7]
[370292159,1751938264838,-622.67,0.00031506,7]
[370292160,1751938264848,-584.3,0.00031506,7]
[370292161,1751938264857,-502.45,0.00031506,7]
[370292162,1751938264866,-460.0,0.00031506,7]
[370292163,1751938264876,-510.73,0.00031506,7]
[370292164,1751938264886,-460.0,0.00031506,7]
[370292165,1751938264895,-707.02,0.00031506,7]
[370292166,1751938264904,-460.0,0.00031506,7]
[370292167,1751938264914,-460.0,0.00031506,7]
[370292168,1751938264924,-460.0,0.00031506,7]
[370292169,1751938264934,-501.63,0.00031506,7]
[370292170,1751938264943,-460.0,0.00031506,7]
[370292171,1751938264953,-460.0,0.00031506,7]
[370292172,1751938264963,-538.24,0.00031506,7]
[370292173,1751938264972,-494.22,0.00031506,7]
[370292174,1751938264982,-460.0,0.00031506,7]
[370292175,1751938264991,-460.0,0.00031506,7]
[370292176,1751938265000,-460.0,0.00031506,7]
[370292177,1751938265009,-460.0,0.00031506,7]
[370292178,1751938265019,-460.0,0.00031506,7]
[370292179,1751938265029,-384.09,0.00031506,7]
[370292180,1751938265039,-460.0,0.00031506,7]
[370292181,1751938265048,-261.99420561,0.00031506,7]
[370292182,1751938265058,-483.61,0.00031506,7]
[370292183,1751938265067,-1076.91,0.00031506,7]
[370292184,1751938265077,-460.0,0.00031506,7]
[370292185,1751938265086,-460.0,0.00031506,7]
[370292186,1751938265458,-669.06,0.00031506,7]
[370292187,1751938265479,-536.22,0.00031506,7]
[370292188,1751938265494,-655.17,0.00031506,7]
[370292189,1751938265504,-460.0,0.00031506,7]
[370292190,1751938265514,-519.92,0.00031506,7]
[370292191,1751938265523,-708.94,0.00031506,7]
[370292192,1751938265533,-534.54,0.00031506,7]
[370292193,1751938265542,-226.73,0.00031506,7]
[370292194,1751938265552,-460.0,0.00031506,7]
[370292195,1751938265562,-460.0,0.00031506,7]
[370292196,1751938265571,-460.0,0.00031506,7]
[370292197,1751938265581,-460.0,0.00031506,7]
[370292198,1751938265591,-553.02,0.00031506,7]
[370292199,1751938265601,-460.0,0.00031506,7]
[370292200,1751938265614,-460.0,0.00031506,7]
[370292201,1751938265624,-575.31,0.00031506,7]
[370292202,1751938265633,-894.25,0.00031506,7]
[370292203,1751938265643,-460.0,0.00031506,7]
[370292204,1751938265652,-551.61,0.00031506,7]
[370292205,1751938265662,-806.95,0.00031506,7]
[370292206,1751938265672,-809.8,0.00031506,7]
[370292207,1751938265681,-460.0,0.00031506,7]
[370292208,1751938265691,-460.0,0.00031506,7]
[370292209,1751938265700,-1969.22,0.00031506,7]
[370292210,1751938265710,-460.0,0.00031506,7]
[370292211,1751938265720,-550.41,0.00031506,7]
[370292212,1751938265730,-460.0,0.00031506,7]
[370292213,1751938265740,-476.49,0.00031506,7]
[370292214,1751938265753,-460.0,0.00031506,7]
[370292215,1751938265762,-460.0,0.00031506,7]
[370292216,1751938265771,-460.0,0.00031506,7]
[370292217,1751938265781,-460.0,0.00031506,7]
[370292218,1751938265791,-460.0,0.00031506,7]
[370292219,1751938265800,-532.05915418,0.00031506,7]
[370292220,1751938265810,-460.0,0.00031506,7]
[370292221,1751938265819,-1167.23,0.00031506,7]
[370292222,1751938265831,-478.79,0.00031506,7]
[370292223,1751938265842,-177.45990815,0.00031506,7]
[370292224,1751938265851,-560.91,0.00031506,7]
[370292225,1751938265861,-460.0,0.00031506,7]
[370292226,1751938265870,-514.0,0.00031506,7]
[370292227,1751938265880,-509.88,0.00031506,7]
[370292228,1751938265890,-460.0,0.00031506,7]
[370292229,1751938265899,-702.02,0.00031506,7]
[370292230,1751938265909,-1306.83,0.00031506,7]
[370292231,1751938265919,-460.0,0.00031506,7]
[370292232,1751938265929,-460.0,0.00031506,7]
[370292233,1751938265939,-460.0,0.00031506,7]
[370292234,1751938265948,-460.0,0.00031506,7]
[370292235,1751938265957,-460.0,0.00031506,7]
[370292236,1751938265967,-438.21359508,0.00031506,7]
[370292237,1751938265977,-460.0,0.00031506,7]
[370292238,1751938265987,-460.0,0.00031506,7]
[370292239,1751938265996,-460.0,0.00031506,7]
[370292240,1751938266006,-460.0,0.00031506,7]
[370292241,1751938266015,-460.0,0.00031506,7]
[370292242,1751938266025,-300.0,0.00031506,2]
[370292243,1751938266035,-478.0,0.00031506,7]
[370292244,1751938266044,-460.0,0.00031506,7]
[370292245,1751938266053,-460.0,0.00031506,7]
[370292246,1751938266063,-584.62,0.00031506,7]
[370292247,1751938266072,-487.46,0.00031506,7]
[370292248,1751938266081,-460.0,0.00031506,7]
[370292249,1751938266090,-1213.7,0.00031506,7]
[370292250,1751938266100,-460.0,0.00031506,7]
[370292251,1751938266110,-460.0,0.00031506,7]
[370292252,1751938266119,-814.77,0.00031506,7]
[370292253,1751938266128,-1374.92,0.00031506,7]
[370292254,1751938266138,-460.0,0.00031506,7]
[370292255,1751938266147,-460.0,0.00031506,7]
[370292256,1751938266157,-460.0,0.00031506,7]
[370292257,1751938266167,-460.0,0.00031506,7]
[370292258,1751938266176,-684.16,0.00031506,7]
[370292259,1751938266185,-460.0,0.00031506,7]
[370292260,1751938266195,-460.0,0.00031506,7]
[370292261,1751938266204,-460.0,0.00031506,7]
[370292262,1751938266213,-460.0,0.00031506,7]
[370292263,1751938266223,-460.0,0.00031506,7]
[370292264,1751938266233,-508.45,0.00031506,7]
[370292265,1751938266243,-2617.83,0.00031506,7]
[370292266,1751938266252,-618.0,0.00031506,7]
[370292267,1751938266261,-1065.75,0.00031506,7]
[370292268,1751938266270,-825.08,0.00031506,7]
[370292269,1751938266279,-551.23,0.00031506,7]
[370292270,1751938266289,-460.0,0.00031506,7]
[370292271,1751938266298,-506.24,0.00031506,7]
[370292272,1751938266307,-262.04423514,0.00031506,7]
[370292273,1751938266316,-460.0,0.00031506,7]
[370292274,1751938266326,-460.0,0.00031506,7]
[370292275,1751938266335,-644.34,0.00031506,7]
[370292276,1751938266344,-460.0,0.00031506,7]
[370292277,1751938266354,-460.0,0.00031506,7]
[370292278,1751938266364,-1133.44,0.00031506,7]
[370292279,1751938266373,-499.81,0.00031506,7]
[370292280,1751938266382,-611.49,0.00031506,7]
[370292281,1751938266392,-486.05,0.00031506,7]
[370292282,1751938266401,-468.87,0.00031506,7]
[370292283,1751938266410,-460.0,0.00031506,7]
[370292284,1751938266419,-460.0,0.00031506,7]
[370292285,1751938266429,-699.01,0.00031506,7]
[370292286,1751938266438,-460.0,0.00031506,7]
[370292287,1751938266447,-527.87,0.00031506,7]
[370292288,1751938266457,-460.0,0.00031506,7]
[370292289,1751938266467,-460.0,0.00031506,7]
[370292290,1751938266684,-970.68,0.00031506,7]
[370292291,1751938266694,-460.0,0.00031506,7]
[370292292,1751938266703,-460.0,0.00031506,7]
[370292293,1751938266712,-460.0,0.00031506,7]
[370292294,1751938266721,-6177.27,0.00031506,7]
[370292295,1751938266730,-200.0,0.00031526,2]
[370292296,1751938266739,-1431.61511472,0.00031555,25]
[370292297,1751938266748,-506.0,0.00031672,6]
[370292298,1751938266757,-84.12327932,0.0003168,2]
[370292299,1751938266791,-460.0,0.0003041,7]
[370292300,1751938266801,-30.0,0.0003168,2]
[370292301,1751938267386,-343.93811905,0.00030136,7]
[370292302,1751938267395,-586.17547934,0.00030136,7]
[370292303,1751938267404,-460.0,0.00030136,7]
[370292304,1751938267414,-460.0,0.00030136,7]
[370292305,1751938267423,-524.73816236,0.00030409,7]
[370292306,1751938267432,-566.80193908,0.0003041,7]
[370292307,1751938267441,-460.0,0.0003041,7]
[370292308,1751938267451,-484.31615911,0.00030684,7]
[370292309,1751938267460,-460.0,0.00030684,7]
[370292310,1751938267470,-210.31172994,0.00031067,2]
[370292311,1751938267479,-52.77579602,0.0003168,2]
[370292312,1751938267488,-500.0,0.00031774,7]
[370292313,1751938267497,-500.0,0.00031778,7]
[370292314,1751938267507,-460.0,0.00031779,7]
[370292315,1751938267517,-460.0,0.00031779,7]
[370292316,1751938267526,-460.0,0.00031779,7]
[370292317,1751938267536,-690.31,0.00031779,7]
[370292318,1751938267546,-460.0,0.00031779,7]
[370292319,1751938267556,-460.0,0.00031779,7]
[370292320,1751938267565,-460.0,0.00031779,7]
[370292321,1751938267575,-1046.01,0.00031779,7]
[370292322,1751938267585,-1089.79,0.00031779,7]
[370292323,1751938267594,-509.38,0.00031779,7]
[370292324,1751938267603,-460.0,0.00031779,7]
[370292325,1751938267613,-654.62,0.00031779,7]
[370292326,1751938267622,-460.0,0.00031779,7]
[370292327,1751938267631,-1024.6,0.00031779,7]
[370292328,1751938267640,-718.1,0.00031779,7]
[370292329,1751938267650,-2116.36,0.00031779,7]
[370292330,1751938267659,-432.1897461,0.00031779,7]
[370292331,1751938267693,-345.0,0.00030958,7]
[370292332,1751938267758,-115.0,0.00030958,7]
[370292333,1751938267767,-27.8102539,0.00031779,7]
[370292334,1751938267777,-480.94,0.00031779,7]
[370292335,1751938267786,-103.28340841,0.00031779,7]
[370292336,1751938267836,-356.71659159,0.00031779,7]
[370292337,1751938267846,-140.55565769,0.00031779,7]
[370292340,1751938419234,155.96,0.00029453,120]
[370292343,1751938645811,15000.0,0.00015,120]
[370292345,1751938755575,201.0,0.00030136,120]
[370292348,1751939090636,2082.98827586,0.0003013,120]
[370292373,1751939365010,394.769063,0.00030136,120]
[370292374,1751939381050,168.79,0.00027531,120]
[370292381,1751939415563,159.74,0.00013699,2]
[370292383,1751939431497,-150.0,0.000204,30]
[370292384,1751939431508,-150.0,0.000204,30]
[370292385,1751939431517,-150.0,0.000204,30]
[370292386,1751939431527,-187.44537,0.000204,30]
[370292387,1751939431536,-275.93410951,0.00022799,2]
[370292388,1751939431546,-1200.0,0.00022999,2]
[370292389,1751939431555,-6367.0,0.00023,2]
[370292390,1751939431564,-167.16,0.00023551,2]
[370292391,1751939431574,-3152.542507,0.00023778,2]
[370292392,1751939431585,-1200.0,0.00023898,2]
[370292393,1751939431595,-1317.0949585,0.000239,10]
[370292394,1751939431605,-1317.09495824,0.00024659,11]
[370292395,1751939431614,-500.0,0.0002474,2]
[370292396,1751939431623,-1317.09495824,0.00025417,13]
[370292397,1751939431633,-4073.0,0.000258,3]
[370292398,1751939431642,-1317.09495824,0.00026176,14]
[370292399,1751939431652,-5509.0,0.000264,5]
[370292400,1751939431662,-1317.09495824,0.00026934,16]
[370292401,1751939431672,-155.91119705,0.000274,2]
[370292402,1751939431683,-250.0,0.00027638,2]
[370292403,1751939431692,-200.0,0.00027665,2]
[370292404,1751939431702,-1000.0,0.00027671,2]
[370292405,1751939431712,-1317.09495824,0.00027693,17]
[370292406,1751939431722,-159.81,0.00027773,2]
[370292407,1751939431731,-162.17,0.00027794,2]
[370292408,1751939431743,-5000.0,0.00027967,2]
[370292409,1751939431755,-167.87,0.00028314,2]
[370292410,1751939431764,-1317.09495824,0.00028452,19]
[370292411,1751939431774,-666.0,0.00028604,2]
[370292412,1751939431783,-151.0,0.00029076,2]
[370292413,1751939431794,-151.0,0.00029076,2]
[370292414,1751939431803,-151.0,0.00029076,2]
[370292415,1751939431812,-151.0,0.00029076,2]
[370292416,1751939431822,-151.0,0.00029076,2]
[370292417,1751939431831,-151.0,0.00029076,2]
[370292418,1751939431840,-151.0,0.00029076,2]
[370292419,1751939431850,-151.0,0.00029076,2]
[370292420,1751939431859,-151.0,0.00029076,2]
[370292421,1751939431869,-175.03580865,0.00029076,2]
[370292422,1751939431879,-453.0,0.00029093,2]
[370292424,1751939431888,-23900.0,0.00029094,2]
[370292426,1751939431898,-1317.09495824,0.0002921,20]
[370292427,1751939431908,-469.1,0.00029324,2]
[370292428,1751939431918,-500.0,0.00029479,2]
[370292429,1751939431927,-1095.17,0.00029607,2]
[370292430,1751939431937,-515.0,0.00029672,2]
[370292431,1751939431947,-250.517968,0.0002989,2]
[370292432,1751939431956,-333.6851,0.00029936,2]
[370292433,1751939431966,-1317.09495824,0.00029969,22]
[370292434,1751939431976,-1061.46,0.00029971,2]
[370292435,1751939431985,-470.0,0.0003,7]
[370292436,1751939431995,-192.66602159,0.00030036,2]
[370292437,1751939432005,-3520.91509613,0.00030036,2]
[370292438,1751939432015,-495.14262656,0.00030136,7]
[370292439,1751939432024,-473.9802125,0.00030136,7]
[370292440,1751939432033,-499.13015494,0.00030136,7]
[370292441,1751939432043,-491.22729503,0.00030136,7]
[370292442,1751939432054,-460.0,0.00030136,7]
[370292443,1751939432064,-210.31172994,0.00030136,7]
[370292445,1751939432074,-493.74426062,0.00030136,7]
[370292447,1751939432084,-460.0,0.00030136,7]
[370292449,1751939432093,-170.4920623,0.00030136,7]
[370292451,1751939432102,-492.08778252,0.00030136,7]
[370292454,1751939432112,-436.45814905,0.00030136,7]
[370292457,1751939432122,-484.66408413,0.00030136,7]
[370292460,1751939432132,-481.11511069,0.00030136,7]
[370292463,1751939432142,-469.72115116,0.00030136,7]
[370292466,1751939432151,-460.0,0.00030136,7]
[370292469,1751939432161,-468.01804248,0.00030136,7]
[370292471,1751939432171,-460.0,0.00030136,7]
[370292473,1751939432180,-522.45711433,0.00030136,7]
[370292475,1751939432190,-371.27786339,0.00030136,7]
[370292477,1751939432199,-492.36711675,0.00030136,7]
[370292479,1751939432208,-484.44284292,0.00030136,7]
[370292481,1751939432218,-508.75964364,0.00030136,2]
[370292483,1751939432227,-460.0,0.00030136,7]
[370292485,1751939432236,-469.10587879,0.00030136,7]
[370292487,1751939432246,-475.52138993,0.00030136,7]
[370292489,1751939432256,-500.0,0.00030136,7]
[370292491,1751939432269,-500.0,0.00030136,7]
[370292493,1751939432280,-483.06698408,0.00030136,7]
[370292495,1751939432289,-460.0,0.00030136,7]
[370292497,1751939432299,-522.44849834,0.00030136,7]
[370292499,1751939432308,-489.90268297,0.00030136,7]
[370292501,1751939432318,-526.98050537,0.00030136,7]
[370292503,1751939432328,-528.03873961,0.00030136,7]
[370292505,1751939432338,-460.0,0.00030136,7]
[370292507,1751939432347,-460.0,0.00030136,7]
[370292509,1751939432357,-508.71983544,0.00030136,7]
[370292511,1751939432367,-547.70700363,0.00030136,7]
[370292514,1751939432376,-494.10874776,0.00030136,7]
[370292516,1751939432386,-478.36695958,0.00030136,7]
[370292518,1751939432396,-460.0,0.00030136,7]
[370292520,1751939432405,-479.37529161,0.00030136,7]
[370292522,1751939432414,-481.65830872,0.00030136,7]
[370292524,1751939432424,-489.53242946,0.00030136,7]
[370292526,1751939432433,-483.91446326,0.00030136,7]
[370292528,1751939432443,-481.07872476,0.00030136,7]
[370292530,1751939432452,-490.68238041,0.00030136,7]
[370292532,1751939432461,-460.0,0.00030136,7]
[370292534,1751939432471,-493.19163803,0.00030136,7]
[370292536,1751939432480,-483.03548695,0.00030136,7]
[370292538,1751939432490,-488.78547388,0.00030136,7]
[370292540,1751939432499,-476.71326003,0.00030136,7]
[370292542,1751939432508,-469.83922399,0.00030136,7]
[370292544,1751939432518,-135.28278604,0.00030136,7]
[370292546,1751939432531,-324.71721396,0.00030136,7]
[370292548,1751939432541,-460.0,0.00030136,7]
[370292550,1751939432551,-467.02726547,0.00030136,7]
[370292552,1751939432562,-19.91975757,0.00030136,7]
[370292554,1751939432571,-460.0,0.00030136,7]
[370292556,1751939432581,-525.98301364,0.00030136,7]
[370292558,1751939432590,-469.10015243,0.00030136,7]
[370292560,1751939432600,-525.82086419,0.00030136,7]
[370292562,1751939432609,-460.0,0.00030136,7]
[370292564,1751939432618,-523.03439339,0.00030136,7]
[370292566,1751939432627,-345.27438978,0.00030136,7]
[370292568,1751939432637,-364.89564204,0.00030136,7]
[370292571,1751939432648,-95.10435796,0.00030136,7]
[370292573,1751939432658,-460.0,0.00030136,7]
[370292575,1751939432667,-460.0,0.00030136,7]
[370292577,1751939432676,-524.39510966,0.00030136,7]
[370292579,1751939432686,-341.46950344,0.00030136,7]
[370292581,1751939432695,-489.87768416,0.00030136,7]
[370292583,1751939432705,-1111.962,0.00030136,25]
[370292585,1751939432714,-522.1847791,0.00030136,7]
[370292587,1751939432724,-470.72623392,0.00030136,7]
[370292589,1751939432733,-460.0,0.00030136,7]
[370292591,1751939432743,-460.0,0.00030136,7]
[370292593,1751939432752,-530.36406163,0.00030136,7]
[370292595,1751939432761,-523.58026312,0.00030136,7]
[370292597,1751939432770,-523.02639702,0.00030136,7]
[370292599,1751939432779,-474.73,0.00030136,7]
[370292601,1751939432788,-522.95857318,0.00030136,7]
[370292603,1751939432797,-483.34852502,0.00030136,7]
[370292605,1751939432806,-484.36178111,0.00030136,7]
[370292607,1751939432816,-460.0,0.00030136,7]
[370292609,1751939432825,-522.39709287,0.00030136,7]
[370292611,1751939432834,-522.86080957,0.00030136,7]
[370292613,1751939432843,-462.84,0.00030136,7]
[370292615,1751939432852,-469.19646305,0.00030136,7]
[370292617,1751939432861,-526.00749088,0.00030136,7]
[370292619,1751939432870,-376.17586038,0.00030136,7]
[370292621,1751939432879,-460.0,0.00030136,7]
[370292622,1751939432888,-522.95631342,0.00030136,7]
[370292625,1751939432898,-524.62,0.00030136,7]
[370292627,1751939432907,-575.91,0.00030136,7]
[370292628,1751939432917,-36.82008913,0.00030136,7]
[370292631,1751939432944,-485.50441314,0.00030136,7]
[370292633,1751939432954,-460.0,0.00030136,7]
[370292635,1751939432965,-460.0,0.00030136,7]
[370292637,1751939432974,-460.0,0.00030136,7]
[370292639,1751939432984,-484.25952986,0.00030136,7]
[370292641,1751939432993,-522.02812921,0.00030136,7]
[370292643,1751939433003,-460.0,0.00030136,7]
[370292645,1751939433012,-467.45967175,0.00030136,7]
[370292647,1751939433022,-527.20548011,0.00030136,7]
[370292649,1751939433032,-460.0,0.00030136,7]
[370292651,1751939433041,-468.51211032,0.00030136,7]
[370292653,1751939433051,-96.95066561,0.00030136,7]
[370292655,1751939433063,-266.47905093,0.00030136,7]
[370292657,1751939433075,-96.57028346,0.00030136,7]